[Event "Polish Youth Ekstraliga 2022"]
[Site "Lublin"]
[Date "2022.06.30"]
[Round "6.4"]
[White "Krol, Jan"]
[Black "Ochedzan, Filip"]
[Result "1/2-1/2"]
[ECO "B90"]
[WhiteElo "1668"]
[BlackElo "1873"]
[Annotator "NA RC"]
[PlyCount "133"]
[EventDate "2022.06.24"]
[EventType "team-tourn"]
[EventCountry "POL"]
[SourceTitle "playchess.com"]
[Source "ChessBase"]
[SourceQuality "1"]
[TimeControl "40/5400+30:1800+30"]

1. e4 {[%emt 0:00:03]} c5 {[%emt 0:00:04]} 2. Nf3 {[%emt 0:00:03]} d6 {[%emt 0:00:15]} 3. d4 {[%emt 0:00:05]} cxd4 {[%emt 0:00:07]} 4. Nxd4 {[%emt 0:00:02]} Nf6 {[%emt 0:00:11]} 5. Nc3 {[%emt 0:00:28]} a6 {[%emt 0:00:14]} 6. Bd3 {[%emt 0:00:08]} e5 {[%emt 0:00:43]} 7. Nde2 {[%emt 0:00:04]} Be7 {[%emt 0:00:23]} 8. O-O {[%emt 0:00:13]} O-O {[%emt 0:00:21]} 9. Kh1 {[%emt 0:00:03]} Nbd7 {[%emt 0:10:08]} 10. Ng3 {[%emt 0:01:20]} Nc5 {[%emt 0:04:21]} 11. f4 {[%emt 0:00:19]} b5 {[%emt 0:06:37]} 12. a3 {[%emt 0:00:25]} Re8 {[%emt 0:09:57]} 13. Qf3 {[%emt 0:15:31]} Bg4 {[%emt 0:07:49]} 14. Qf2 {[%emt 0:04:59]} Be6 {[%emt 0:03:28]} 15. h3 {[%emt 0:40:06]} exf4 {[%emt 0:10:09]} 16. Bxf4 {[%emt 0:00:20]} d5 {[%emt 0:01:22] [#]} (16... Rb8 $11 {remains equal.}) 17. e5 {[%emt 0:00:39]} ({Better is} 17. Rad1 $1 $16 d4 18. Nce2 (18. Be2 dxc3 19. Rxd8 Raxd8 $14)) 17... Nxd3 {[%emt 0:00:41]} 18. cxd3 {[%emt 0:00:11]} Nd7 {[%emt 0:00:46]} 19. Nge2 {[%emt 0:07:46]} Nc5 {[%emt 0:07:14]} (19... Nf8 $11 {is superior.}) 20. Rad1 {[%emt 0:01:59]} Rc8 {[%emt 0:01:14]} 21. Nd4 {[%emt 0:04:34]} Qd7 {[%emt 0:02:26]} (21... Nd7 $11 {feels stronger.}) 22. Qg3 {[%emt 0:02:06]} Kh8 {[%emt 0:01:20]} 23. Rf3 {[%emt 0:03:13]} Qd8 {[%emt 0:05:19]} 24. Rdf1 {[%emt 0:08:34]} Bh4 {[%emt 0:01:10]} 25. Nxe6 {[%emt 0:00:56]} Rxe6 {[%emt 0:05:12]} 26. Qh2 {[%emt 0:00:16]} (26. Qg4 $14) 26... f5 {[%emt 0:09:39]} 27. Bg3 {[%emt 0:05:14]} (27. d4 $14 Ne4 28. Be3) 27... Bxg3 {[%emt 0:01:16]} (27... g6 $11) 28. Qxg3 {[%emt 0:00:11]} g6 {[%emt 0:00:48]} 29. Qf4 {[%emt 0:00:37]} (29. Ne2 $142) 29... d4 {[%emt 0:06:03]} 30. Ne2 Qd5 {[%emt 0:00:36]} 31. Nxd4 {[%emt 0:04:47]} Rxe5 {[%emt 0:00:44]} 32. b4 {[%emt 0:00:13]} Ne6 {[%emt 0:00:49]} 33. Nxe6 {[%emt 0:00:05]} Qxe6 {[%emt 0:00:12]} 34. Qh6 {[%emt 0:01:06]} Qe7 {[%emt 0:02:42]} 35. d4 {[%emt 0:00:20]} Rd5 {[%emt 0:00:42]} 36. Rd3 {[%emt 0:00:45]} Rcd8 {[%emt 0:00:28]} 37. Rfd1 {[%emt 0:00:26]} Qf6 {[%emt 0:02:16]} 38. Qd2 {[%emt 0:00:37]} Re8 {[%emt 0:00:25]} 39. Re3 {[%emt 0:00:35]} Red8 {[%emt 0:00:29]} 40. Rd3 {[%emt 0:00:00]} Qg7 {[%emt 0:00:00]} 41. Rc1 {[%emt 0:03:52]} (41. Re1 $11 {feels stronger.}) 41... Rxd4 {[%emt 0:09:19]} 42. Rxd4 {[%emt 0:00:03]} Qxd4 {[%emt 0:00:13]} 43. Qxd4+ {[%emt 0:00:04]} Rxd4 {[%emt 0:00:11]} 44. Rc6 {[%emt 0:00:08]} a5 {[%emt 0:02:06]} 45. bxa5 {[%emt 0:00:07]} Ra4 {[%emt 0:00:09]} 46. a6 {[%emt 0:00:05]} Rxa3 {[%emt 0:00:09]} 47. Rb6 {[%emt 0:00:04]} Kg7 {[%emt 0:02:56]} 48. Rxb5 {[%emt 0:00:22]} Rxa6 {[%emt 0:00:09]} 49. Rb7+ {[%emt 0:00:16]} Kh6 {[%emt 0:00:11]} 50. Rf7 {[%emt 0:00:07]} Ra5 {[%emt 0:02:34]} 51. h4 {[%emt 0:00:49]} g5 {[%emt 0:07:13]} 52. hxg5+ {[%emt 0:00:25]} Kg6 {[%emt 0:00:17]} 53. Rf8 {[%emt 0:02:04]} Kxg5 {[%emt 0:00:58]} 54. Kh2 {[%emt 0:00:27]} Ra6 {[%emt 0:01:20]} 55. Rf7 {[%emt 0:04:56]} h6 {[%emt 0:02:57]} 56. Kh3 {[%emt 0:02:13]} Rf6 {[%emt 0:00:52]} 57. Rg7+ {[%emt 0:01:32]} Rg6 {[%emt 0:00:17]} 58. Ra7 {[%emt 0:00:04]} Rf6 {[%emt 0:00:31]} 59. Rg7+ {[%emt 0:00:23]} Kf4 $11 {[%emt 0:00:36]} 60. g4 {[%emt 0:00:30]} Kf3 {[%emt 0:01:50]} 61. gxf5 {[%emt 0:00:46]} Rxf5 {[%emt 0:00:06]} 62. Kh4 {[%emt 0:01:06]} Kf4 {[%emt 0:00:46]} 63. Rg4+ {[%emt 0:00:13]} Kf3 {[%emt 0:00:09]} 64. Rg3+ {[%emt 0:00:16]} Kf2 {[%emt 0:00:14]} 65. Rg6 {[%emt 0:00:04]} Kf3 {[%emt 0:01:19]} 66. Rxh6 {[%emt 0:00:50]} Kf4 {[%emt 0:00:04]} 67. Rg6 1/2-1/2

[Event "Polish Youth Ekstraliga 2022"]
[Site "Lublin"]
[Date "2022.06.30"]
[Round "6.5"]
[White "Lochina, Justyna"]
[Black "Adamczyk, Zuzanna"]
[Result "0-1"]
[ECO "B35"]
[WhiteElo "1672"]
[BlackElo "1909"]
[Annotator "RC"]
[PlyCount "84"]
[EventDate "2022.06.24"]
[EventType "team-tourn"]
[EventCountry "POL"]
[SourceTitle "playchess.com"]
[Source "ChessBase"]
[SourceQuality "1"]
[TimeControl "40/5400+30:1800+30"]

1. e4 {[%emt 0:00:02]} c5 {[%emt 0:00:06]} 2. Nf3 {[%emt 0:00:09]} Nc6 {[%emt 0:00:09]} 3. d4 {[%emt 0:00:28]} cxd4 {[%emt 0:00:07]} 4. Nxd4 {[%emt 0:00:09]} g6 {[%emt 0:02:01]} 5. Nc3 {[%emt 0:01:34]} Bg7 {[%emt 0:00:12]} 6. Be3 {[%emt 0:00:52]} Nf6 {[%emt 0:00:10]} 7. Bc4 {[%emt 0:04:59]} O-O {[%emt 0:00:32]} 8. Bb3 {[%emt 0:00:32]} Re8 {[%emt 0:00:21]} 9. f3 {[%emt 0:03:45]} d5 {[%emt 0:02:22]} 10. exd5 {[%emt 0:14:06]} Nb4 {[%emt 0:00:46]} 11. Nde2 {[%emt 0:12:00]} e6 {[%emt 0:00:19]} 12. Bg5 {[%emt 0:10:16]} Nbxd5 {[%emt 0:16:27]} 13. Qd2 {[%emt 0:04:47]} Nxc3 {[%emt 0:18:47]} 14. Qxd8 {[%emt 0:02:58]} Rxd8 {[%emt 0:00:09]} 15. Nxc3 {[%emt 0:00:12]} h6 {[%emt 0:03:06]} 16. Be3 {[%emt 0:06:05]} b6 {[%emt 0:09:22]} 17. a4 {[%emt 0:03:21]} Bb7 {[%emt 0:08:18]} 18. a5 {[%emt 0:03:46]} bxa5 {[%emt 0:10:39]} 19. Rxa5 {[%emt 0:01:17]} Nd5 {[%emt 0:03:09]} 20. Nxd5 {[%emt 0:05:03]} exd5 {[%emt 0:02:14]} 21. O-O {[%emt 0:11:00]} Bxb2 {[%emt 0:09:07]} 22. Rb1 {[%emt 0:03:37]} Bg7 {[%emt 0:06:38]} 23. Ba4 {[%emt 0:04:21]} d4 {[%emt 0:01:49]} 24. Bxh6 {[%emt 0:03:17]} Bxh6 {[%emt 0:00:37]} 25. Rxb7 {[%emt 0:00:07]} d3 {[%emt 0:01:23]} 26. cxd3 {[%emt 0:01:13]} Rxd3 {[%emt 0:00:17]} 27. Bb3 {[%emt 0:03:01]} Rf8 {[%emt 0:01:36]} 28. g3 {[%emt 0:00:35]} Be3+ {[%emt 0:00:36]} 29. Kg2 {[%emt 0:00:12]} Bb6 {[%emt 0:00:19]} 30. Rb5 {[%emt 0:00:42]} Rd2+ {[%emt 0:00:56]} 31. Kh3 {[%emt 0:00:37]} Bg1 {[%emt 0:00:42]} 32. Kg4 {[%emt 0:00:52]} Rxh2 {[%emt 0:00:14]} 33. Rb8 {[%emt 0:00:21]} Bb6 {[%emt 0:00:29]} 34. Rxf8+ {[%emt 0:00:29]} Kxf8 {[%emt 0:00:06]} 35. Bc4 {[%emt 0:00:41]} Rc2 {[%emt 0:00:48]} 36. Rb4 {[%emt 0:00:23]} Kg7 {[%emt 0:00:33]} 37. Bd5 {[%emt 0:00:31]} Rd2 {[%emt 0:00:21]} 38. Bb7 {[%emt 0:00:31]} f5+ {[%emt 0:00:53]} 39. Kf4 {[%emt 0:00:36]} Kf6 {[%emt 0:00:22]} 40. g4 {[%emt 0:00:00]} g5+ {[%emt 0:00:00]} 41. Kg3 {[%emt 0:00:42]} f4+ {[%emt 0:05:39]} 42. Kh3 {[%emt 0:03:14]} Bg1 {[%emt 0:00:13]} 0-1

[Event "Polish Youth Ekstraliga 2022"]
[Site "Lublin"]
[Date "2022.06.30"]
[Round "6.6"]
[White "Gaszka, Zuzanna"]
[Black "Smietanska, Wiktoria"]
[Result "0-1"]
[ECO "B10"]
[WhiteElo "1621"]
[BlackElo "1879"]
[Annotator "NA RC"]
[PlyCount "106"]
[EventDate "2022.06.24"]
[EventType "team-tourn"]
[EventCountry "POL"]
[SourceTitle "playchess.com"]
[Source "ChessBase"]
[SourceQuality "1"]
[TimeControl "40/5400+30:1800+30"]

1. e4 {[%emt 0:00:01]} c6 {[%emt 0:00:06]} 2. Nc3 {[%emt 0:00:06]} d5 {[%emt 0:00:08]} 3. Nf3 {[%emt 0:00:03]} Nf6 {[%emt 0:00:11]} 4. e5 {[%emt 0:00:05]} Ne4 {[%emt 0:00:09]} 5. Ne2 {[%emt 0:00:05]} Qb6 {[%emt 0:00:14]} 6. d4 {[%emt 0:00:05]} e6 {[%emt 0:00:42]} 7. Ng3 {[%emt 0:00:10] 7.Ng3 scores better than 7.Nfg1.} Nxg3 {[%emt 0:04:56]} 8. fxg3 {[%emt 0:00:12]} c5 {[%emt 0:01:35]} 9. Bd3 {[%emt 0:00:22]} Be7 {[%emt 0:04:03]} 10. O-O {[%emt 0:04:25]} h6 {[%emt 0:02:43] [#]} 11. c3 $146 {[%emt 0:07:30]} ({Predecessor:} 11. a3 Bd7 12. c3 Nc6 13. Kh1 c4 14. Bc2 O-O-O 15. Nh4 g5 16. Nf3 Rdf8 17. Qe2 {1-0 (33) Padmini,R (2370)-Li,X (2303) Chess.com INT 2021}) 11... Nc6 {[%emt 0:01:31]} 12. Kh1 {[%emt 0:02:59]} Bd7 {[%emt 0:02:09]} 13. Bc2 {[%emt 0:03:46]} Rc8 {[%emt 0:02:52]} 14. g4 {[%emt 0:11:17]} cxd4 {[%emt 0:06:26]} 15. cxd4 {[%emt 0:00:30]} Nb4 {[%emt 0:05:44]} 16. Rf2 {[%emt 0:09:20]} (16. Bb1 $11 {deserves consideration.}) 16... Nxc2 {[%emt 0:02:57]} 17. Rxc2 {[%emt 0:00:23]} O-O {[%emt 0:01:57]} (17... Rxc2 $15 {might be stronger.} 18. Qxc2 O-O) 18. Be3 {[%emt 0:17:06]} (18. Rf2 $11 {was preferrable.}) 18... Rxc2 {[%emt 0:04:59]} 19. Qxc2 {[%emt 0:00:05]} Rc8 {[%emt 0:00:13]} 20. Qf2 {[%emt 0:01:23]} Qb5 {[%emt 0:02:04]} 21. Rd1 {[%emt 0:05:51]} Qa4 {[%emt 0:10:02]} 22. b3 {[%emt 0:01:15] [#]} Qa3 {[%emt 0:00:24]} ({Better is} 22... Qa6 $1 $17) 23. h4 {[%emt 0:04:25]} a5 {[%emt 0:02:39]} 24. h5 {[%emt 0:17:22]} a4 {[%emt 0:00:55]} 25. g5 $1 {[%emt 0:01:11]} hxg5 {[%emt 0:03:45]} 26. Bxg5 {[%emt 0:02:00]} Bf8 {[%emt 0:06:36]} 27. Rd3 {[%emt 0:03:16]} (27. Rb1 $11) 27... Bb5 {[%emt 0:01:07]} 28. Re3 {[%emt 0:00:24]} Rc1+ {[%emt 0:01:41]} 29. Re1 {[%emt 0:03:07]} Rxe1+ {[%emt 0:01:19]} 30. Qxe1 {[%emt 0:00:27]} Qxa2 {[%emt 0:01:25]} 31. bxa4 {[%emt 0:00:10]} Bxa4 {[%emt 0:01:04]} 32. h6 {[%emt 0:03:22]} gxh6 {[%emt 0:01:31]} 33. Bf6 {[%emt 0:00:25]} Qc2 {[%emt 0:01:41]} 34. Qa5 {[%emt 0:01:21]} Qb3 {[%emt 0:02:39]} 35. Qa8 {[%emt 0:02:08] [#]} Qb5 {[%emt 0:01:19]} ({Better is} 35... Qb4 $1 $19 36. Be7 Qxe7 37. Qxa4 Qa3 38. Qxa3 Bxa3) 36. Ng1 {[%emt 0:00:48]} b6 {[%emt 0:02:34]} 37. Nh3 {[%emt 0:00:08]} Qe8 {[%emt 0:00:18]} 38. Qa6 {[%emt 0:00:21]} Qc6 {[%emt 0:00:48]} 39. Qe2 {[%emt 0:00:46]} Bc2 {[%emt 0:07:31]} 40. Nf4 {[%emt 0:00:00]} Be4 {[%emt 0:00:00]} 41. Qg4+ {[%emt 0:06:24]} Kh7 {[%emt 0:01:46]} 42. Qh4 {[%emt 0:11:35]} Qc1+ {[%emt 0:02:48]} 43. Kh2 {[%emt 0:00:08]} b5 {[%emt 0:04:00]} 44. Nh3 {[%emt 0:03:10]} Qc2 {[%emt 0:02:21]} 45. Qg4 {[%emt 0:01:48]} Bg6 $19 {[%emt 0:04:12]} 46. Ng5+ {[%emt 0:00:50]} Kg8 {[%emt 0:00:52]} 47. Nh3 {[%emt 0:06:40]} b4 {[%emt 0:00:28]} 48. Qh4 {[%emt 0:01:16]} b3 {[%emt 0:00:15]} 49. Be7 {[%emt 0:00:54]} Bxe7 {[%emt 0:00:59]} 50. Qxe7 {[%emt 0:00:07]} b2 {[%emt 0:00:35]} 51. Qd8+ {[%emt 0:00:24]} Kh7 {[%emt 0:00:12]} 52. Ng5+ {[%emt 0:00:37]} hxg5 {[%emt 0:00:08]} 53. Qxg5 {[%emt 0:00:08]} Qe4 {[%emt 0:00:18]} 0-1

[Event "Polish Youth Ekstraliga 2022"]
[Site "Lublin"]
[Date "2022.06.30"]
[Round "6.7"]
[White "Kutowski, Marcel"]
[Black "Ciborowski, Konrad Jr"]
[Result "1-0"]
[ECO "B34"]
[WhiteElo "1954"]
[BlackElo "1927"]
[Annotator "RC"]
[PlyCount "79"]
[EventDate "2022.06.24"]
[EventType "team-tourn"]
[EventCountry "POL"]
[SourceTitle "playchess.com"]
[Source "ChessBase"]
[SourceQuality "1"]
[TimeControl "40/5400+30:1800+30"]

1. e4 {[%emt 0:00:02]} c5 {[%emt 0:00:03]} 2. Nf3 {[%emt 0:00:10]} Nc6 {[%emt 0:00:04]} 3. Nc3 {[%emt 0:00:30]} g6 {[%emt 0:00:28]} 4. d4 {[%emt 0:01:36]} cxd4 {[%emt 0:00:04]} 5. Nxd4 {[%emt 0:00:05]} Bg7 {[%emt 0:00:12]} 6. Be3 {[%emt 0:00:31]} Nf6 {[%emt 0:00:10]} 7. f3 {[%emt 0:05:33]} O-O {[%emt 0:00:16]} 8. Qd2 {[%emt 0:00:57]} d5 {[%emt 0:00:11]} 9. exd5 {[%emt 0:02:27]} Nxd5 {[%emt 0:01:21]} 10. Nxc6 {[%emt 0:01:21]} bxc6 {[%emt 0:00:13]} 11. Bd4 {[%emt 0:00:25]} Bxd4 {[%emt 0:03:57]} 12. Qxd4 {[%emt 0:03:35]} Qa5 {[%emt 0:01:31]} 13. Qa4 {[%emt 0:07:10]} Qc5 {[%emt 0:06:44]} 14. Nxd5 {[%emt 0:01:28]} Qxd5 {[%emt 0:00:06]} 15. Be2 {[%emt 0:21:52]} Bf5 {[%emt 0:04:02]} 16. O-O {[%emt 0:15:26]} Rab8 {[%emt 0:05:29]} 17. b3 {[%emt 0:04:45]} Qc5+ {[%emt 0:04:54]} 18. Kh1 {[%emt 0:03:54]} Qxc2 {[%emt 0:01:27]} 19. Bc4 {[%emt 0:00:33]} Rbd8 {[%emt 0:01:13]} 20. Qxa7 {[%emt 0:03:52]} Rd2 {[%emt 0:00:28]} 21. Qg1 {[%emt 0:01:00]} Rfd8 {[%emt 0:04:19]} 22. Rfc1 {[%emt 0:00:57]} Qb2 {[%emt 0:00:17]} 23. Rd1 {[%emt 0:02:34]} h5 {[%emt 0:09:47]} 24. a4 {[%emt 0:06:49]} h4 {[%emt 0:13:35]} 25. h3 {[%emt 0:00:25]} Bxh3 {[%emt 0:26:10]} 26. gxh3 {[%emt 0:03:47]} Qf6 {[%emt 0:00:04]} 27. Rxd2 {[%emt 0:01:14]} Rxd2 {[%emt 0:00:03]} 28. Rf1 {[%emt 0:01:32]} Qf5 {[%emt 0:00:13]} 29. Qg4 {[%emt 0:01:07]} Qc2 {[%emt 0:02:52]} 30. a5 {[%emt 0:02:43]} Kg7 {[%emt 0:02:15]} 31. a6 {[%emt 0:01:17]} Rh2+ {[%emt 0:00:31]} 32. Kg1 {[%emt 0:00:12]} Qd2 {[%emt 0:00:01]} 33. f4 {[%emt 0:01:48]} Qa2 {[%emt 0:03:07]} 34. Qf3 {[%emt 0:00:37]} Rc2 {[%emt 0:00:11]} 35. f5 {[%emt 0:01:04]} Qb2 {[%emt 0:00:27]} 36. a7 {[%emt 0:00:55]} Qd4+ {[%emt 0:03:03]} 37. Kh1 {[%emt 0:00:11]} Qe5 {[%emt 0:00:39]} 38. Qf4 {[%emt 0:00:42]} Qc3 {[%emt 0:00:02]} 39. f6+ {[%emt 0:01:05]} exf6 {[%emt 0:00:30]} 40. Qxf6+ {[%emt 0:00:00]} 1-0

[Event "Polish Youth Ekstraliga 2022"]
[Site "Lublin"]
[Date "2022.06.30"]
[Round "6.8"]
[White "Wydmanski, Szymon"]
[Black "Wilk, Igor"]
[Result "0-1"]
[ECO "E09"]
[WhiteElo "1815"]
[BlackElo "1824"]
[Annotator "NA RC"]
[PlyCount "66"]
[EventDate "2022.06.24"]
[EventType "team-tourn"]
[EventCountry "POL"]
[SourceTitle "playchess.com"]
[Source "ChessBase"]
[SourceQuality "1"]
[TimeControl "40/5400+30:1800+30"]

1. c4 {[%emt 0:00:18]} e6 {[%emt 0:00:33]} 2. g3 {[%emt 0:00:06]} Nf6 {[%emt 0:00:17]} 3. Bg2 {[%emt 0:00:04]} d5 {[%emt 0:00:30]} 4. Nf3 {[%emt 0:00:05]} Be7 {[%emt 0:00:41]} 5. d4 {[%emt 0:00:10]} O-O {[%emt 0:00:11]} 6. O-O {[%emt 0:00:03]} Nbd7 {[%emt 0:00:37]} 7. Qc2 {[%emt 0:00:20]} c6 {[%emt 0:00:16]} 8. Nbd2 {[%emt 0:00:07]} b6 {[%emt 0:00:42]} 9. e4 {[%emt 0:00:07]} dxc4 {[%emt 0:02:16]} 10. Nxc4 {[%emt 0:04:49]} Bb7 {[%emt 0:01:55]} 11. Rd1 {[%emt 0:05:59]} c5 {[%emt 0:04:44]} 12. Nfe5 {[%emt 0:00:45]} b5 {[%emt 0:04:43]} (12... cxd4 $1 $11 {remains equal.} 13. Rxd4 Qc7) 13. Nxd7 {[%emt 0:18:59]} Nxd7 {[%emt 0:00:41]} 14. Ne3 {[%emt 0:00:41]} cxd4 {[%emt 0:07:29]} 15. Rxd4 {[%emt 0:00:28]} Rc8 {[%emt 0:01:34]} 16. Qd3 {[%emt 0:04:57]} Bc6 {[%emt 0:00:33]} 17. e5 {[%emt 0:01:47]} Bc5 {[%emt 0:00:27]} 18. Rh4 {[%emt 0:01:20]} f5 {[%emt 0:01:28]} 19. b4 {[%emt 0:24:51] [#]} Bxe3 {[%emt 0:07:13]} (19... Bxg2 $1 $17 20. Kxg2 Bb6) 20. Qxe3 {[%emt 0:00:52]} Bxg2 {[%emt 0:00:59]} 21. Kxg2 {[%emt 0:00:09]} Nb6 {[%emt 0:00:20]} 22. Rd4 {[%emt 0:04:23]} Qc7 {[%emt 0:08:20]} 23. Qe2 {[%emt 0:07:12]} Qc6+ {[%emt 0:11:35]} 24. Qf3 {[%emt 0:04:52]} Nd5 {[%emt 0:01:58]} 25. Bd2 {[%emt 0:03:39]} Qb6 {[%emt 0:04:44]} 26. Rxd5 {[%emt 0:00:59]} exd5 {[%emt 0:00:11]} 27. Qxd5+ {[%emt 0:00:05]} Kh8 {[%emt 0:00:14]} 28. Be3 {[%emt 0:02:28]} Qg6 {[%emt 0:08:07]} 29. Bc5 $17 {[%emt 0:10:04]} (29. Bxa7 $11 {keeps the balance.} f4 30. Kg1) 29... Rfd8 {[%emt 0:01:56]} 30. Bd6 {[%emt 0:03:18]} f4 {[%emt 0:00:27]} 31. Re1 {[%emt 0:00:54]} Rc3 {[%emt 0:02:31]} 32. Qxb5 {[%emt 0:00:58]} Qf5 {[%emt 0:02:28]} 33. e6 {[%emt 0:00:37]} Qxb5 {[%emt 0:00:06]} 0-1

[Event "Polish Youth Ekstraliga 2022"]
[Site "Lublin"]
[Date "2022.06.30"]
[Round "6.9"]
[White "Bartoszczuk, Adam"]
[Black "Wolak, Maciej"]
[Result "1/2-1/2"]
[ECO "B36"]
[WhiteElo "1662"]
[BlackElo "1316"]
[Annotator "NA RC"]
[PlyCount "70"]
[EventDate "2022.06.24"]
[EventType "team-tourn"]
[EventCountry "POL"]
[SourceTitle "playchess.com"]
[Source "ChessBase"]
[SourceQuality "1"]
[TimeControl "40/5400+30:1800+30"]

1. e4 {[%emt 0:00:03]} c5 {[%emt 0:00:04]} 2. Nf3 {[%emt 0:00:07]} Nc6 {[%emt 0:00:10]} 3. d4 {[%emt 0:00:11]} cxd4 {[%emt 0:00:12]} 4. Nxd4 {[%emt 0:00:08]} g6 {[%emt 0:00:12]} 5. c4 {[%emt 0:01:05]} Nf6 {[%emt 0:00:26]} 6. Nc3 {[%emt 0:00:25]} d6 {[%emt 0:01:10]} 7. f3 {[%emt 0:01:01]} Nxd4 {[%emt 0:02:15]} 8. Qxd4 {[%emt 0:00:09]} Bg7 {[%emt 0:00:33]} 9. Be3 {[%emt 0:01:40]} O-O {[%emt 0:00:20]} 10. Qd2 {[%emt 0:01:28]} Qa5 {[%emt 0:11:03]} 11. Rc1 {[%emt 0:06:02]} Be6 {[%emt 0:03:39]} 12. b3 {[%emt 0:03:12]} Rfc8 {[%emt 0:01:55]} 13. Be2 {[%emt 0:01:21]} Nd7 {[%emt 0:04:18]} 14. O-O {[%emt 0:08:51]} a6 {[%emt 0:08:11]} 15. f4 {[%emt 0:09:58]} Nc5 {[%emt 0:15:07]} 16. Bf3 {[%emt 0:04:09]} Rab8 {[%emt 0:05:55]} 17. Bd4 {[%emt 0:04:35]} Bxd4+ {[%emt 0:01:27]} 18. Qxd4 {[%emt 0:00:03]} b5 {[%emt 0:03:41]} 19. f5 {[%emt 0:02:42]} Bd7 {[%emt 0:05:22]} 20. Nd5 {[%emt 0:03:17]} Qd8 {[%emt 0:24:27]} 21. f6 {[%emt 0:04:20]} exf6 {[%emt 0:00:39]} 22. Nxf6+ {[%emt 0:00:13]} Kf8 {[%emt 0:00:32]} 23. Nxh7+ {[%emt 0:04:51]} Kg8 {[%emt 0:03:19]} 24. Nf6+ {[%emt 0:00:19]} Kf8 {[%emt 0:00:30]} 25. Qxd6+ {[%emt 0:00:47]} Qe7 {[%emt 0:00:48]} 26. Nxd7+ {[%emt 0:02:32]} Nxd7 {[%emt 0:00:13]} 27. Qxe7+ {[%emt 0:02:52]} Kxe7 {[%emt 0:00:01]} 28. Bg4 {[%emt 0:10:09]} bxc4 {[%emt 0:00:27]} 29. Rfd1 {[%emt 0:04:52]} Rd8 {[%emt 0:00:56]} 30. Rxc4 {[%emt 0:06:04]} Ne5 {[%emt 0:00:33]} 31. Rc7+ {[%emt 0:00:08]} Kf6 {[%emt 0:00:27]} 32. Rf1+ {[%emt 0:08:55]} Kg5 {[%emt 0:01:30]} 33. Be2 {[%emt 0:00:14]} Rd2 {[%emt 0:00:32]} 34. Rc5 {[%emt 0:02:38]} f6 {[%emt 0:01:01]} 35. Bxa6 {[%emt 0:00:52]} Rxa2 1/2-1/2

[Event "Polish Youth Ekstraliga 2022"]
[Site "Lublin"]
[Date "2022.06.30"]
[Round "6.10"]
[White "Kania, Franciszek"]
[Black "Kaszuba, Michal"]
[Result "1-0"]
[ECO "B35"]
[WhiteElo "1523"]
[BlackElo "1307"]
[Annotator "NA RC"]
[PlyCount "115"]
[EventDate "2022.06.24"]
[EventType "team-tourn"]
[EventCountry "POL"]
[SourceTitle "playchess.com"]
[Source "ChessBase"]
[SourceQuality "1"]
[TimeControl "40/5400+30:1800+30"]

1. e4 {[%emt 0:00:07]} c5 {[%emt 0:00:03]} 2. Nf3 {[%emt 0:00:05]} g6 {[%emt 0:00:18]} 3. d4 {[%emt 0:01:06]} cxd4 {[%emt 0:00:28]} 4. Nxd4 {[%emt 0:00:04]} Nc6 {[%emt 0:00:56]} 5. Nc3 {[%emt 0:00:52]} Bg7 {[%emt 0:00:27]} 6. Be3 {[%emt 0:00:11]} Nf6 {[%emt 0:00:46]} 7. Bc4 {[%emt 0:00:57]} Qa5 {[%emt 0:00:44]} 8. O-O {[%emt 0:11:24]} O-O {[%emt 0:00:54]} 9. Bb3 {[%emt 0:01:06]} d6 {[%emt 0:02:23]} 10. h3 {[%emt 0:02:11]} Bd7 {[%emt 0:05:24]} 11. Qd3 {[%emt 0:09:37]} Ne5 {[%emt 0:06:23]} 12. Qe2 {[%emt 0:00:19]} Bc6 {[%emt 0:02:55]} 13. f4 {[%emt 0:02:24]} Ned7 {[%emt 0:01:21]} 14. Nxc6 {[%emt 0:00:40]} bxc6 {[%emt 0:00:18]} 15. Qf3 {[%emt 0:05:53]} Nc5 {[%emt 0:08:57]} 16. e5 {[%emt 0:07:38]} Nfd7 {[%emt 0:07:03]} 17. Qxc6 {[%emt 0:12:16]} dxe5 {[%emt 0:11:07]} 18. f5 {[%emt 0:12:13]} Rac8 {[%emt 0:12:09]} 19. Qf3 {[%emt 0:01:51]} Nf6 {[%emt 0:05:01]} 20. fxg6 {[%emt 0:01:52]} hxg6 {[%emt 0:00:21]} 21. Qg3 {[%emt 0:02:39]} e6 {[%emt 0:01:20]} 22. Qh4 {[%emt 0:00:26]} Ncd7 {[%emt 0:12:48]} 23. Rad1 {[%emt 0:01:27]} Rfd8 {[%emt 0:06:59]} 24. Bg5 {[%emt 0:03:45]} Qc5+ {[%emt 0:06:07]} 25. Kh2 {[%emt 0:01:43]} e4 {[%emt 0:03:10]} 26. Rxd7 {[%emt 0:02:48]} Rxd7 {[%emt 0:01:16]} 27. Bxf6 {[%emt 0:00:15]} Bxf6 {[%emt 0:00:14]} 28. Qxf6 {[%emt 0:00:09]} Qd4 {[%emt 0:01:00]} 29. Qxd4 {[%emt 0:01:24]} Rxd4 {[%emt 0:00:25]} 30. Re1 {[%emt 0:00:29]} Rc5 {[%emt 0:02:11]} 31. Rxe4 {[%emt 0:01:15]} Rxe4 {[%emt 0:00:28]} 32. Nxe4 {[%emt 0:00:06]} Rc6 {[%emt 0:01:02]} 33. Kg3 {[%emt 0:00:32]} Kg7 {[%emt 0:00:11]} 34. Kf4 {[%emt 0:00:51]} a5 {[%emt 0:01:08]} 35. a4 {[%emt 0:02:01]} Rb6 {[%emt 0:00:41]} 36. Ke5 {[%emt 0:01:03]} g5 {[%emt 0:00:50]} 37. Nd6 {[%emt 0:02:48]} Rc6 {[%emt 0:00:35]} 38. Bc4 {[%emt 0:02:05]} Rc5+ {[%emt 0:00:28]} 39. Kd4 {[%emt 0:01:12]} Rc6 {[%emt 0:00:33]} 40. Nb7 {[%emt 0:00:00]} Rb6 {[%emt 0:00:00]} 41. Nxa5 {[%emt 0:01:30]} Rxb2 {[%emt 0:01:18]} 42. Bb3 {[%emt 0:01:13]} Rb1 {[%emt 0:00:27]} 43. Nc6 {[%emt 0:04:12]} Kf8 {[%emt 0:09:47]} 44. Kc5 {[%emt 0:02:32]} Rg1 {[%emt 0:09:22]} 45. a5 {[%emt 0:01:22]} Rxg2 {[%emt 0:01:56]} 46. a6 {[%emt 0:00:33]} Rg1 {[%emt 0:00:16]} 47. Ba4 {[%emt 0:01:52]} Ra1 {[%emt 0:01:28]} 48. Kb4 {[%emt 0:00:44]} Rb1+ {[%emt 0:00:43]} 49. Ka5 {[%emt 0:00:12]} Rh1 {[%emt 0:00:24]} 50. a7 {[%emt 0:00:11]} Rxh3 {[%emt 0:00:41]} 51. a8=Q+ {[%emt 0:00:10]} Kg7 {[%emt 0:00:13]} 52. Qb8 {[%emt 0:00:20]} g4 {[%emt 0:00:17]} 53. Qe5+ {[%emt 0:00:09]} Kg6 {[%emt 0:00:22]} 54. Ne7+ {[%emt 0:00:06]} Kh7 {[%emt 0:00:18]} 55. Qf4 {[%emt 0:00:39]} f5 {[%emt 0:00:28]} 56. Qg5 {[%emt 0:00:20]} g3 {[%emt 0:00:26]} 57. Qg6+ {[%emt 0:00:08]} Kh8 {[%emt 0:00:04]} 58. Qg8# {[%emt 0:00:04]} 1-0